bitfinex-derivatives/quotes_BNBF0:USTF0_20251002
["timestamp","ask_amount","ask_price","bid_price","bid_amount"]
[1759365220892,0.92007631,1026.6,1025.2,0.16960345]
[1759365221194,0.92007631,1026.5,1025.2,0.16960345]
[1759365221393,0.92007631,1026.4,1025.2,0.16960345]
[1759365221696,0.86527895,1026.8,1025.2,0.16960345]
[1759365221996,0.92013621,1026.7,1025.2,0.16960345]
[1759365222295,0.92013621,1026.6,1025.2,0.16960345]
[1759365222496,0.92013621,1026.5,1025.2,0.16960345]
[1759365222693,0.92013621,1026.4,1025.2,0.16960345]
[1759365222897,0.92013621,1026.3,1025.2,0.16960345]
[1759365223192,0.86527895,1026.8,1025.2,0.16960345]
[1759365223395,0.92043511,1026.7,1025.2,0.16960345]
[1759365223593,0.92043511,1026.6,1025.2,0.16960345]
[1759365223892,0.92043511,1026.5,1025.2,0.16960345]
[1759365224096,0.92043511,1026.4,1025.2,0.16960345]
[1759365224292,0.92043511,1026.3,1025.2,0.16960345]
[1759365224593,0.86527895,1026.8,1025.2,0.16960345]
[1759365224798,0.92200594,1026.7,1025.2,0.16960345]
[1759365225095,0.92200594,1026.6,1025.2,0.16960345]
[1759365225294,0.92200594,1026.5,1025.2,0.16960345]
[1759365225499,0.92200594,1026.4,1025.2,0.16960345]
[1759365225795,0.92200594,1026.3,1025.2,0.16960345]
[1759365225997,0.86527895,1026.8,1025.2,0.16960345]
[1759365226297,1.78752785,1026.7,1025.2,0.16960345]
[1759365226595,0.9222489,1026.6,1024.3,0.85371996]
[1759365226897,0.9222489,1026.5,1025.0,0.16963239]
[1759365227097,0.9222489,1026.4,1024.3,0.85371996]
[1759365227298,0.9222489,1026.3,1024.4,0.85371996]
[1759365227496,0.86527895,1027.0,1025.0,0.16964397]
[1759365227697,0.92240464,1026.9,1024.4,0.85371996]
[1759365227899,0.92240464,1026.8,1025.0,0.16961503]
[1759365228099,0.92240464,1026.7,1025.0,0.16961503]
[1759365228297,0.92240464,1026.6,1025.0,0.16961503]
[1759365228497,0.92240464,1026.5,1025.0,0.16961503]
[1759365228702,0.92240464,1026.4,1025.0,0.16961503]
[1759365228898,0.92240464,1026.3,1025.0,0.16961503]
[1759365229099,0.92240464,1026.2,1025.0,0.16961503]
[1759365229299,0.86527895,1026.8,1025.0,0.16961503]
[1759365229499,1.78778665,1026.7,1025.0,0.16961503]
[1759365229697,0.9225077,1026.6,1025.0,0.16961503]
[1759365229998,0.9225077,1026.5,1025.0,0.16961503]
[1759365230200,0.9225077,1026.4,1025.0,0.16961503]
[1759365230402,0.9225077,1026.3,1025.0,0.16961503]
[1759365230700,0.9225077,1026.2,1025.0,0.16961503]
[1759365230904,0.86527895,1026.7,1025.0,0.16961503]
[1759365231100,0.92249489,1026.6,1025.0,0.16961503]
[1759365231399,0.92249489,1026.5,1025.0,0.16961503]
[1759365231602,0.92249489,1026.4,1025.0,0.16961503]
[1759365231803,0.92249489,1026.3,1025.0,0.16961503]
[1759365232000,0.92249489,1026.2,1025.0,0.16961503]
[1759365232201,0.86527895,1026.7,1025.0,0.16961503]
[1759365232500,1.78778119,1026.6,1025.0,0.16961503]
[1759365232705,0.92250224,1026.5,1025.0,0.16961503]
[1759365238410,1.78778119,1026.5,1025.0,0.16961503]
[1759365238610,0.92250224,1026.4,1025.0,0.16961503]
[1759365241309,1.78778119,1026.3,1024.4,0.85371996]
[1759365241509,0.92250224,1026.2,1024.7,0.16967043]
[1759365244115,0.92250224,1026.1,1024.7,0.16967043]
[1759365244316,0.92250224,1026.0,1024.7,0.16967043]
[1759365244616,0.92250224,1025.9,1024.7,0.16967043]
[1759365244910,0.86527895,1026.4,1024.7,0.16967043]
[1759365245114,0.92319761,1026.3,1024.7,0.16967043]
[1759365245313,0.92319761,1026.2,1024.7,0.16967043]
[1759365245512,0.92319761,1026.1,1024.7,0.16967043]
[1759365245716,0.92319761,1026.0,1024.7,0.16967043]
[1759365246010,0.92319761,1025.9,1024.7,0.16967043]
[1759365246216,0.86527895,1026.4,1024.7,0.16967043]
[1759365246413,0.92278464,1026.3,1024.7,0.16967043]
[1759365246612,0.92278464,1026.2,1024.7,0.16967043]
[1759365246912,0.92278464,1026.1,1024.7,0.16967043]
[1759365247216,0.92278464,1026.0,1024.7,0.16967043]
[1759365247516,0.92278464,1025.9,1024.7,0.16967043]
[1759365247715,0.92310306,1025.8,1024.7,0.16967043]
[1759365247916,0.86527895,1026.3,1024.7,0.16967043]
[1759365248211,0.92311971,1026.2,1024.7,0.16967043]
[1759365248413,0.92311971,1026.1,1024.7,0.16967043]
[1759365248612,0.92311971,1026.0,1024.7,0.16967043]
[1759365248816,0.92311971,1025.9,1024.7,0.16967043]
[1759365249016,0.92311971,1025.8,1024.7,0.16967043]
[1759365249314,0.86527895,1026.4,1024.7,0.16967043]
[1759365249617,0.92356703,1026.3,1024.7,0.16967043]
[1759365249818,0.92356703,1026.2,1024.7,0.16967043]
[1759365250014,0.92356703,1026.1,1024.7,0.16967043]
[1759365250316,0.92356703,1026.0,1024.7,0.16967043]
[1759365250515,0.92356703,1025.9,1024.7,0.16967043]
[1759365250720,0.92336531,1025.8,1023.7,0.85371996]
[1759365251020,0.92336531,1025.7,1024.6,0.16971677]
[1759365251220,0.92336531,1025.6,1024.1,0.85371996]
[1759365251417,0.86527895,1026.1,1024.6,0.16973333]
[1759365251621,0.86527895,1025.9,1024.6,0.16973333]
[1759365251917,0.92374026,1025.8,1024.2,0.85371996]
[1759365252116,0.92374026,1025.7,1024.5,0.16972257]
[1759365252419,0.92374026,1025.6,1024.5,0.16972257]
[1759365252617,0.86527895,1026.0,1024.5,0.16972257]
[1759365252820,0.92366747,1025.9,1024.5,0.16972257]
[1759365253017,0.92366747,1025.8,1024.5,0.16972257]
[1759365253321,0.92366747,1025.7,1024.5,0.16972257]
[1759365253617,0.86527895,1026.0,1024.5,0.16972257]
[1759365253618,0.92366747,1025.6,1024.5,0.16972257]
[1759365253917,0.86527895,1026.0,1024.5,0.16972257]
[1759365254118,0.92329114,1025.9,1024.5,0.16972257]
[1759365254322,0.92329114,1025.8,1024.5,0.16972257]
[1759365254520,0.92329114,1025.7,1024.5,0.16972257]
[1759365254717,0.92329114,1025.6,1024.5,0.16972257]
[1759365254918,0.86527895,1026.0,1024.5,0.16972257]
[1759365255119,0.92324455,1025.9,1024.5,0.16972257]
[1759365255323,0.92324455,1025.8,1024.5,0.16972257]
[1759365255523,0.92324455,1025.7,1024.5,0.16972257]
[1759365255818,0.92324455,1025.6,1024.5,0.16972257]
[1759365256024,0.86527895,1026.0,1024.5,0.16972257]
[1759365256221,0.92306935,1025.9,1024.5,0.16972257]
[1759365256418,0.92306935,1025.8,1024.5,0.16972257]
[1759365256719,0.92306935,1025.7,1024.5,0.16972257]
[1759365257019,0.92306935,1025.6,1024.5,0.16972257]
[1759365257323,0.86527895,1026.0,1024.5,0.16972257]
[1759365257623,0.92274078,1025.9,1024.5,0.16972257]
[1759365257922,0.92274078,1025.8,1024.5,0.16972257]
[1759365258220,0.92274078,1025.7,1024.5,0.16972257]
[1759365258421,0.92274078,1025.6,1024.5,0.16972257]
[1759365258721,0.92274078,1025.5,1024.5,0.16972257]
[1759365259022,0.16974326,1025.8,1024.5,0.16972257]
[1759365259225,0.92244808,1025.7,1024.5,0.16972257]
[1759365259519,0.92244808,1025.6,1024.5,0.16972257]
[1759365259720,0.92244808,1025.5,1024.5,0.16972257]
[1759365259926,0.16974326,1025.8,1024.5,0.16972257]
[1759365260125,0.92216893,1025.7,1024.5,0.16972257]
[1759365260321,0.92216893,1025.6,1024.5,0.16972257]
[1759365260519,0.92216893,1025.5,1024.5,0.16972257]
[1759365260822,0.16974326,1025.8,1024.5,0.16972257]
[1759365261025,0.9217594,1025.7,1024.5,0.16972257]
[1759365261226,0.9217594,1025.6,1024.5,0.16972257]
[1759365261427,1.03501973,1026.0,1024.5,0.16972257]
[1759365261623,0.92171498,1025.9,1024.5,0.16972257]
[1759365261822,0.92171498,1025.8,1024.5,0.16972257]
[1759365262122,0.92171498,1025.7,1024.5,0.16972257]
[1759365262421,0.92171498,1025.6,1024.5,0.16972257]
[1759365262722,0.16974078,1026.0,1024.5,0.16972257]
[1759365262923,0.92162809,1025.9,1024.5,0.16972257]
[1759365263122,0.92162809,1025.8,1024.5,0.16972257]
[1759365263426,0.92162809,1025.7,1024.5,0.16972257]
[1759365263722,0.92162809,1025.6,1024.5,0.16972257]
[1759365263923,0.16974078,1026.0,1024.5,0.16972257]
[1759365264126,0.92157175,1025.9,1024.5,0.16972257]
[1759365264323,0.92157175,1025.8,1024.5,0.16972257]
[1759365264626,0.92157175,1025.7,1024.5,0.16972257]
[1759365264824,0.92157175,1025.6,1024.5,0.16972257]
[1759365265023,0.16974078,1026.0,1024.5,0.16972257]
[1759365265228,0.92145038,1025.9,1024.5,0.16972257]
[1759365265427,0.92145038,1025.8,1024.5,0.16972257]
[1759365265628,0.92145038,1025.7,1024.5,0.16972257]
[1759365265828,0.92145038,1025.6,1024.5,0.16972257]
[1759365266128,0.86527895,1026.3,1024.5,0.16972257]
[1759365266323,0.92133293,1026.2,1024.5,0.16972257]
[1759365266526,0.92133293,1026.1,1024.5,0.16972257]
[1759365266724,0.92133293,1026.0,1024.5,0.16972257]
[1759365266926,0.92133293,1025.9,1024.5,0.16972257]
[1759365267126,1.03499655,1026.3,1024.5,0.16972257]
[1759365267326,0.92167564,1026.2,1024.5,0.16972257]
[1759365267529,0.92167564,1026.1,1024.5,0.16972257]
[1759365267828,0.92167564,1026.0,1024.5,0.16972257]
[1759365268028,0.92167564,1025.9,1024.5,0.16972257]
[1759365268226,0.1697176,1026.3,1024.5,0.16972257]
[1759365268426,0.92168535,1026.2,1024.5,0.16972257]
[1759365268726,0.92168535,1026.1,1024.5,0.16972257]
[1759365269030,0.92168535,1026.0,1024.5,0.16972257]
[1759365269230,0.1697176,1026.3,1024.5,0.16972257]
[1759365269528,0.92184124,1026.2,1024.5,0.16972257]
[1759365269730,0.92184124,1026.1,1024.5,0.16972257]
[1759365269928,0.92184124,1026.0,1024.5,0.16972257]
[1759365270126,0.1697176,1026.3,1024.5,0.16972257]
[1759365270328,0.92173483,1026.2,1024.5,0.16972257]
[1759365270528,0.92173483,1026.1,1024.5,0.16972257]
[1759365270732,0.92173483,1026.0,1024.5,0.16972257]
[1759365270933,0.1697176,1026.3,1024.5,0.16972257]
[1759365271135,0.92144815,1026.2,1024.5,0.16972257]
[1759365271429,0.92144815,1026.1,1024.5,0.16972257]
[1759365271634,0.92144815,1026.0,1024.5,0.16972257]
[1759365271834,0.1697176,1026.3,1024.5,0.16972257]
[1759365272032,0.92150182,1026.2,1024.5,0.16972257]
[1759365272330,0.92150182,1026.1,1024.5,0.16972257]
[1759365272632,0.92150182,1026.0,1024.5,0.16972257]
[1759365272836,0.1697176,1026.3,1024.5,0.16972257]
[1759365273036,0.9218208,1026.2,1024.5,0.16972257]
[1759365273233,0.9218208,1026.1,1024.5,0.16972257]
[1759365273432,0.9218208,1026.0,1024.5,0.16972257]
[1759365273632,0.1697176,1026.3,1024.5,0.16972257]
[1759365273837,0.92194444,1026.2,1024.5,0.16972257]
[1759365274035,0.92194444,1026.1,1024.5,0.16972257]
[1759365274234,0.92194444,1026.0,1024.5,0.16972257]
[1759365274434,0.1697176,1026.3,1024.5,0.16972257]
[1759365274634,0.92205388,1026.2,1024.5,0.16972257]
[1759365274837,0.92205388,1026.1,1024.5,0.16972257]
[1759365275032,0.92205388,1026.0,1024.5,0.16972257]
[1759365275237,0.1697176,1026.3,1024.5,0.16972257]
[1759365275432,0.92209325,1026.2,1024.5,0.16972257]
[1759365275733,0.92209325,1026.1,1024.5,0.16972257]
[1759365275934,0.92209325,1026.0,1024.5,0.16972257]
[1759365276134,0.1697176,1026.3,1024.5,0.16972257]
[1759365276338,0.92229111,1026.2,1024.5,0.16972257]
[1759365276536,0.92229111,1026.1,1024.5,0.16972257]
[1759365276739,0.92229111,1026.0,1024.5,0.16972257]
[1759365276937,0.1697176,1026.3,1024.5,0.16972257]
[1759365277135,0.92226055,1026.2,1024.5,0.16972257]
[1759365277335,0.92226055,1026.1,1024.5,0.16972257]
[1759365277537,0.92226055,1026.0,1024.5,0.16972257]
[1759365277739,0.92226055,1025.9,1024.5,0.16972257]
[1759365277939,0.1697176,1026.3,1024.5,0.16972257]
[1759365278236,0.92246405,1026.2,1024.5,0.16972257]
[1759365278541,0.92271463,1026.1,1024.5,0.16972257]
[1759365278836,0.92271463,1026.0,1024.5,0.16972257]
[1759365279041,0.92271463,1025.9,1024.5,0.16972257]
[1759365279237,0.1697176,1026.3,1024.5,0.16972257]
[1759365279436,0.92281299,1026.2,1024.5,0.16972257]
[1759365279639,0.1697176,1026.3,1024.5,0.16972257]
[1759365279640,0.92281299,1026.1,1024.5,0.16972257]
[1759365279836,0.92281299,1026.0,1024.5,0.16972257]
[1759365280040,0.92281299,1025.9,1024.5,0.16972257]
[1759365280243,0.1697176,1026.3,1024.5,0.16972257]
[1759365280437,0.92299947,1026.2,1024.5,0.16972257]
[1759365280738,0.92299947,1026.1,1024.5,0.16972257]
[1759365280940,0.92299947,1026.0,1024.5,0.16972257]
[1759365281138,0.92299947,1025.9,1024.5,0.16972257]
[1759365281342,0.92299947,1025.8,1024.5,0.16972257]
[1759365281537,1.03499655,1026.3,1024.5,0.16972257]
[1759365281738,0.9230502,1026.2,1024.5,0.16972257]
[1759365282038,0.9230502,1026.1,1024.5,0.16972257]
[1759365282240,0.9230502,1026.0,1024.5,0.16972257]
[1759365282439,0.9230502,1025.9,1024.5,0.16972257]
[1759365282641,0.9230502,1025.8,1024.5,0.16972257]
[1759365282840,0.9230502,1025.7,1024.5,0.16972257]
[1759365283041,0.86527895,1026.1,1024.5,0.16972257]
[1759365283243,0.9231407,1026.0,1024.5,0.16972257]
[1759365283443,0.9231407,1025.9,1024.5,0.16972257]
[1759365283641,0.9231407,1025.8,1024.5,0.16972257]
[1759365283940,0.9231407,1025.7,1024.5,0.16972257]
[1759365284147,0.86527895,1026.1,1024.5,0.16972257]
[1759365284342,0.92326989,1026.0,1024.5,0.16972257]
[1759365284539,0.92326989,1025.9,1024.5,0.16972257]
[1759365284840,0.92326989,1025.8,1024.5,0.16972257]
[1759365285044,0.92326989,1025.7,1024.5,0.16972257]
[1759365285342,0.86527895,1026.1,1024.5,0.16972257]
[1759365285540,0.92352906,1026.0,1024.5,0.16972257]
[1759365285744,0.92352906,1025.9,1024.5,0.16972257]
[1759365286044,0.92352906,1025.8,1024.5,0.16972257]
[1759365286339,0.92352906,1025.7,1024.5,0.16972257]
[1759365286544,0.86527895,1026.1,1024.5,0.16972257]
[1759365286740,0.92361669,1026.0,1024.5,0.16972257]
[1759365287039,0.92361669,1025.9,1024.5,0.16972257]
[1759365287241,0.92361669,1025.8,1024.5,0.16972257]
[1759365287541,0.92361669,1025.7,1024.5,0.16972257]
[1759365287745,0.86527895,1026.1,1024.5,0.16972257]
[1759365288045,0.92377626,1026.0,1024.5,0.16972257]
[1759365288344,0.92377626,1025.9,1024.5,0.16972257]
[1759365288639,0.92377626,1025.8,1024.5,0.16972257]
[1759365288840,0.92377626,1025.7,1024.5,0.16972257]
[1759365289040,0.86527895,1026.1,1024.5,0.16972257]
[1759365289245,0.92393606,1026.0,1024.5,0.16972257]
[1759365289542,0.86527895,1026.1,1024.5,0.16972257]
[1759365289543,0.92393606,1025.9,1024.5,0.16972257]
[1759365289741,0.92393606,1025.8,1024.5,0.16972257]
[1759365289941,0.92393606,1025.7,1024.5,0.16972257]
[1759365290145,0.86527895,1026.1,1024.5,0.16972257]
[1759365290347,0.92420854,1026.0,1024.5,0.16972257]
[1759365290643,0.92420854,1025.9,1024.5,0.16972257]
[1759365290846,0.92420854,1025.8,1024.5,0.16972257]
[1759365291043,0.1697176,1026.3,1024.5,0.16972257]
[1759365291246,0.92424288,1026.2,1024.5,0.16972257]
[1759365291442,0.92424288,1026.1,1024.5,0.16972257]
[1759365291649,0.92424288,1026.0,1024.5,0.16972257]
[1759365291948,0.92424288,1025.9,1024.5,0.16972257]
[1759365292149,0.92424288,1025.8,1024.5,0.16972257]
[1759365292349,0.1697176,1026.3,1024.5,0.16972257]
[1759365292547,0.92452683,1026.2,1024.5,0.16972257]
[1759365292750,0.92452683,1026.1,1024.5,0.16972257]
[1759365292947,0.92452683,1026.0,1024.5,0.16972257]
[1759365293253,0.92452683,1025.9,1024.5,0.16972257]
[1759365293452,0.92452683,1025.8,1024.5,0.16972257]
[1759365293652,0.1697176,1026.3,1024.5,0.16972257]
[1759365293852,0.92464946,1026.2,1024.5,0.16972257]
[1759365294152,0.92464946,1026.1,1024.5,0.16972257]
[1759365294354,0.92464946,1026.0,1024.5,0.16972257]
[1759365294554,0.92464946,1025.9,1024.5,0.16972257]
[1759365294754,0.92464946,1025.8,1024.5,0.16972257]
[1759365294956,0.1697176,1026.3,1024.5,0.16972257]
[1759365295255,0.92480568,1026.2,1024.5,0.16972257]
[1759365295454,0.92480568,1026.1,1024.5,0.16972257]
[1759365295754,0.92480568,1026.0,1024.5,0.16972257]
[1759365295954,0.92480568,1025.9,1024.5,0.16972257]
[1759365296152,0.92480568,1025.8,1024.5,0.16972257]
[1759365296352,0.1697176,1026.3,1024.5,0.16972257]
[1759365296553,0.9251596,1026.2,1024.5,0.16972257]
[1759365296852,0.9251596,1026.1,1024.5,0.16972257]
[1759365297052,0.9251596,1026.0,1024.5,0.16972257]
[1759365297255,0.9251596,1025.9,1024.5,0.16972257]
[1759365297455,0.9251596,1025.8,1024.5,0.16972257]
[1759365297653,0.9251596,1025.7,1024.5,0.16972257]
[1759365297856,0.1697176,1026.3,1024.5,0.16972257]
[1759365298155,0.92536643,1026.2,1024.5,0.16972257]
[1759365298353,0.92536643,1026.1,1024.5,0.16972257]
[1759365298556,0.92536643,1026.0,1024.5,0.16972257]
[1759365298754,0.92536643,1025.9,1024.5,0.16972257]
[1759365298956,0.92536643,1025.8,1024.5,0.16972257]
[1759365299156,0.92536643,1025.7,1024.5,0.16972257]
[1759365299357,0.1697176,1026.3,1024.5,0.16972257]
[1759365299659,0.92568965,1026.2,1024.5,0.16972257]
[1759365299861,0.92568965,1026.1,1024.5,0.16972257]
[1759365300061,0.92568965,1026.0,1024.5,0.16972257]
[1759365300258,0.92568965,1025.9,1024.5,0.16972257]
[1759365300561,0.92568965,1025.8,1024.5,0.16972257]
[1759365300759,0.92568965,1025.7,1024.5,0.16972257]
[1759365300962,0.86527895,1026.2,1024.5,0.16972257]
[1759365301162,0.92587743,1026.1,1024.5,0.16972257]
[1759365301362,1.79115638,1026.0,1024.5,0.16972257]
[1759365301659,0.86527895,1025.8,1024.2,0.85371996]
[1759365301862,1.79115638,1025.7,1024.3,1.02344667]
[1759365302062,0.92587743,1025.6,1024.3,1.02344667]
[1759365302261,0.92587743,1025.5,1024.3,1.02344667]
[1759365302460,0.92587743,1025.4,1024.3,1.02344667]
[1759365302659,0.86527895,1025.7,1024.3,1.02344667]
[1759365302863,0.92555381,1025.6,1024.3,1.02344667]
[1759365303158,0.92555381,1025.5,1024.3,1.02344667]
[1759365303360,0.92555381,1025.4,1024.3,1.02344667]
[1759365303559,0.86527895,1025.7,1024.3,1.02344667]
[1759365303762,0.92545217,1025.6,1024.3,0.16972671]
[1759365303960,0.92545217,1025.5,1024.3,0.16972671]
[1759365304158,0.92545217,1025.4,1024.3,0.16972671]
[1759365304362,0.86527895,1025.9,1024.3,0.16972671]
[1759365304560,0.92536917,1025.8,1024.3,0.16972671]
[1759365304763,0.92536917,1025.7,1024.3,0.16972671]
[1759365304959,0.92536917,1025.6,1024.3,0.16972671]
[1759365305165,0.92536917,1025.5,1024.3,0.16972671]
[1759365305359,0.86527895,1025.7,1024.4,0.85371996]
[1759365305562,0.92540952,1025.6,1024.5,0.85371996]
[1759365305760,0.86527895,1025.9,1024.5,0.85371996]
[1759365305959,0.91149466,1025.8,1024.5,0.85371996]
[1759365306160,0.91149466,1025.7,1024.5,0.85371996]
[1759365306464,0.86527895,1026.0,1024.5,0.85371996]
[1759365306663,0.91157358,1025.9,1024.5,0.85371996]
[1759365306863,0.91157358,1025.8,1024.5,0.85371996]
[1759365307064,0.91157358,1025.7,1024.5,0.85371996]
[1759365307362,0.86527895,1026.0,1024.5,0.85371996]
[1759365307665,0.91157653,1025.9,1024.6,0.85371996]
[1759365307865,0.91157653,1025.8,1024.5,0.85371996]
[1759365308064,0.91157653,1025.7,1024.5,0.85371996]
[1759365308364,0.86527895,1026.0,1024.5,0.85371996]
[1759365308562,0.91159358,1025.9,1024.5,0.85371996]
[1759365308762,0.91159358,1025.8,1024.5,0.85371996]
[1759365308966,0.91159358,1025.7,1024.5,0.85371996]
[1759365309266,0.86527895,1026.0,1024.5,0.85371996]
[1759365309462,0.91161381,1025.9,1024.5,0.85371996]
[1759365309661,0.91161381,1025.8,1024.5,0.85371996]
[1759365309867,0.91161381,1025.7,1024.5,0.85371996]
[1759365310167,0.86527895,1026.0,1024.5,0.85371996]
[1759365310365,0.91159668,1025.9,1024.5,0.85371996]
[1759365310566,0.91159668,1025.8,1024.5,0.85371996]
[1759365310767,0.91159668,1025.7,1024.5,0.85371996]
[1759365310964,0.86527895,1026.0,1024.5,0.85371996]
[1759365311169,0.91160193,1025.9,1024.5,0.85371996]
[1759365311367,0.91160193,1025.8,1024.4,0.85371996]
[1759365311669,0.91160193,1025.7,1024.4,0.85371996]
[1759365311865,0.91160193,1025.6,1024.4,0.85371996]
[1759365312168,0.86527895,1026.0,1024.4,0.85371996]
[1759365312366,1.77671061,1025.9,1024.4,0.85371996]
[1759365312568,0.91143166,1025.8,1024.4,0.85371996]
[1759365312768,0.91143166,1025.7,1024.4,0.85371996]
[1759365312965,0.91143166,1025.6,1024.4,0.85371996]
[1759365313169,0.86527895,1026.0,1024.4,0.85371996]
[1759365313368,0.91144264,1025.9,1024.4,0.85371996]
[1759365313568,0.91144264,1025.8,1024.4,0.85371996]
[1759365313767,0.91144264,1025.7,1024.4,0.85371996]
[1759365313966,0.91144264,1025.6,1024.4,0.85371996]
[1759365314167,0.86527895,1026.0,1024.4,0.85371996]
[1759365314367,0.91112113,1025.9,1024.4,0.85371996]
[1759365314569,0.91112113,1025.8,1024.5,0.85371996]
[1759365314770,0.91112113,1025.7,1024.5,0.85371996]
[1759365315070,0.86527895,1025.9,1024.6,0.85371996]
[1759365315371,0.91124588,1025.8,1024.6,0.85371996]
[1759365315670,0.91124588,1025.7,1024.6,0.85371996]
[1759365315871,0.86527895,1026.0,1024.6,0.85371996]
[1759365316171,0.91126519,1025.9,1024.6,0.85371996]
[1759365316466,0.91126519,1025.8,1024.6,0.85371996]
[1759365316669,0.91126519,1025.7,1024.6,0.85371996]
[1759365316866,0.86527895,1026.0,1024.6,0.85371996]
[1759365317170,0.91128531,1025.9,1024.5,0.85371996]
[1759365317367,0.91128531,1025.8,1024.5,0.85371996]
[1759365317669,0.91128531,1025.7,1024.5,0.85371996]
[1759365317870,0.86527895,1026.0,1024.5,0.85371996]
[1759365318070,0.91130689,1025.9,1024.5,0.85371996]
[1759365318271,0.91130689,1025.8,1024.5,0.85371996]
[1759365318468,0.91130689,1025.7,1024.6,0.85371996]
[1759365318672,0.86527895,1026.0,1024.6,0.85371996]
[1759365318872,0.91134409,1025.9,1024.6,0.85371996]
[1759365319072,0.91134409,1025.8,1024.6,0.85371996]
[1759365319269,0.91134409,1025.7,1024.5,0.85371996]
[1759365319571,0.86527895,1026.0,1024.5,0.85371996]
[1759365319774,0.91145654,1025.9,1024.5,0.85371996]
[1759365319971,0.91145654,1025.8,1024.5,0.85371996]
[1759365320171,0.91145654,1025.7,1024.5,0.85371996]
[1759365320371,0.86527895,1026.0,1024.5,0.85371996]
[1759365320573,0.91157729,1025.9,1024.5,0.85371996]
[1759365320772,0.91157729,1025.8,1024.5,0.85371996]
[1759365321072,0.91157729,1025.7,1024.5,0.85371996]
[1759365321372,0.86527895,1026.0,1024.5,0.85371996]
[1759365321572,0.91170147,1025.9,1024.5,0.85371996]
[1759365321775,0.91170147,1025.8,1024.5,0.85371996]
[1759365321975,0.91170147,1025.7,1024.5,0.85371996]
[1759365322174,0.86527895,1026.0,1024.5,0.85371996]
[1759365322377,0.91170248,1025.9,1024.5,0.85371996]
[1759365322577,0.91170248,1025.8,1024.5,0.85371996]
[1759365322777,0.91170248,1025.7,1024.5,0.85371996]
[1759365322977,0.86527895,1026.0,1024.5,0.85371996]
[1759365323176,0.91169763,1025.9,1024.5,0.85371996]
[1759365323375,0.91169763,1025.8,1024.5,0.85371996]
[1759365323673,0.91169763,1025.7,1024.5,0.85371996]
[1759365323879,0.86527895,1026.0,1024.5,0.85371996]
[1759365324174,0.91170814,1025.9,1024.5,0.85371996]
[1759365324377,0.91170814,1025.8,1024.5,0.85371996]
[1759365324578,0.91170814,1025.7,1024.5,0.85371996]
[1759365324778,0.86527895,1026.0,1024.5,0.85371996]
[1759365324976,0.91176446,1025.9,1024.5,0.85371996]
[1759365325276,0.91176446,1025.8,1024.5,0.85371996]
[1759365325478,0.91176446,1025.7,1024.5,0.85371996]
[1759365325674,0.86527895,1026.0,1024.5,0.85371996]
[1759365325875,0.91179683,1025.9,1024.5,0.85371996]
[1759365326173,0.91179683,1025.8,1024.5,0.85371996]
[1759365326379,0.91179683,1025.7,1024.5,0.85371996]
[1759365326580,0.86527895,1026.0,1024.5,0.85371996]
[1759365326876,0.91181204,1025.9,1024.5,0.85371996]
[1759365327076,0.91181204,1025.8,1024.5,0.85371996]
[1759365327277,0.86527895,1026.1,1024.5,0.85371996]
[1759365327278,0.91181204,1025.7,1024.5,0.85371996]
[1759365327477,0.86527895,1026.0,1024.5,0.85371996]
[1759365327680,0.91184967,1025.9,1024.5,0.85371996]
[1759365327981,0.91184967,1025.8,1024.4,0.85371996]
[1759365328180,0.91184967,1025.7,1024.4,0.85371996]
[1759365328481,0.86527895,1026.1,1024.4,0.85371996]
[1759365328683,0.91189503,1026.0,1024.4,0.85371996]
[1759365328881,0.91189503,1025.9,1024.5,0.85371996]
[1759365329081,0.91189503,1025.8,1024.5,0.85371996]
[1759365329282,0.91189503,1025.7,1024.5,0.85371996]
[1759365329481,0.91189503,1025.6,1024.5,0.85371996]
[1759365329781,0.86527895,1026.0,1024.5,0.85371996]
[1759365329978,0.9120195,1025.9,1024.5,0.85371996]
[1759365330184,0.9120195,1025.8,1024.4,0.85371996]
[1759365330380,0.9120195,1025.7,1024.4,0.85371996]
[1759365330578,0.86527895,1026.1,1024.4,0.85371996]
[1759365330784,0.91216932,1026.0,1024.4,0.85371996]
[1759365330984,0.91216932,1025.9,1024.4,0.85371996]
[1759365331281,0.91216932,1025.8,1024.4,0.85371996]
[1759365331480,0.91216932,1025.7,1024.4,0.85371996]
[1759365331683,0.91216932,1025.6,1024.4,0.85371996]
[1759365331884,0.86527895,1026.1,1024.4,0.85371996]
[1759365332084,0.91229636,1026.0,1024.4,0.85371996]
[1759365332284,0.91229636,1025.9,1024.4,0.85371996]
[1759365332584,0.91229636,1025.8,1024.4,0.85371996]
[1759365332884,0.91229636,1025.7,1024.4,0.85371996]
[1759365333084,0.91229636,1025.6,1024.4,0.85371996]
[1759365333283,0.86527895,1026.1,1024.4,0.85371996]
[1759365333488,0.91251047,1026.0,1024.5,0.85371996]
[1759365333686,0.91251047,1025.9,1024.5,0.85371996]
[1759365333885,0.91251047,1025.8,1024.5,0.85371996]
[1759365334086,0.91251047,1025.7,1024.5,0.85371996]
[1759365334284,0.91251047,1025.6,1024.5,0.85371996]
[1759365334484,0.86527895,1026.1,1024.5,0.85371996]
[1759365334787,0.91271863,1026.0,1024.5,0.85371996]
[1759365334988,0.91271863,1025.9,1024.5,0.85371996]
[1759365335187,0.91271863,1025.8,1024.5,0.85371996]
[1759365335487,0.91271863,1025.7,1024.5,0.85371996]
[1759365335685,0.91271863,1025.6,1024.5,0.85371996]
[1759365335985,0.86527895,1026.1,1024.5,0.85371996]
[1759365336186,0.91286371,1026.0,1024.5,0.85371996]
[1759365336388,0.91286371,1025.9,1024.5,0.85371996]
[1759365336885,0.91286371,1025.8,1024.5,0.85371996]
[1759365337186,0.91286371,1025.7,1024.6,0.85371996]
[1759365337486,0.91286371,1025.6,1024.6,0.85371996]
[1759365337684,0.86527895,1025.9,1024.6,0.85371996]
[1759365337886,0.91314857,1025.8,1024.6,0.85371996]
[1759365338085,0.91314857,1025.7,1024.6,0.85371996]
[1759365338386,0.91314857,1025.6,1024.6,0.85371996]
[1759365338585,0.86527895,1025.9,1024.6,0.85371996]
[1759365338888,0.91322906,1025.8,1024.6,0.85371996]
[1759365339089,0.91322906,1025.7,1024.5,0.85371996]
[1759365339291,0.91322906,1025.6,1024.5,0.85371996]
[1759365339486,0.91322906,1025.5,1024.5,0.85371996]
[1759365339685,0.86527895,1025.9,1024.5,0.85371996]
[1759365339890,0.91322268,1025.8,1024.5,0.85371996]
[1759365340086,0.91322268,1025.7,1024.5,0.85371996]
[1759365340291,0.91322268,1025.6,1024.5,0.85371996]
[1759365340490,0.91322268,1025.5,1024.5,0.85371996]
[1759365340787,0.86527895,1026.0,1024.5,0.85371996]
[1759365340992,0.91328317,1025.9,1024.5,0.85371996]
[1759365341287,0.91328317,1025.8,1024.5,0.85371996]
[1759365341586,0.91328317,1025.7,1024.4,0.85371996]
[1759365341790,0.91328317,1025.6,1024.4,0.85371996]
[1759365341989,0.91328317,1025.5,1024.4,0.85371996]
[1759365342191,0.86527895,1026.0,1024.5,0.85371996]
[1759365342488,0.9132788,1025.9,1024.5,0.85371996]
[1759365342688,0.9132788,1025.8,1024.4,0.85371996]
[1759365342888,0.9132788,1025.7,1024.4,0.85371996]
[1759365343086,0.9132788,1025.6,1024.4,0.85371996]
[1759365343286,0.9132788,1025.5,1024.4,0.85371996]